[Event "Marshall Chess Club IM 2020"]
[Site "New York"]
[Date "2020.03.01"]
[Round "7"]
[White "Fikiet, Alex"]
[Black "Sarkar, Justin"]
[Result "1/2-1/2"]
[ECO "A40"]
[WhiteElo "2217"]
[BlackElo "2373"]
[Annotator "RC"]
[PlyCount "65"]
[EventDate "2020.02.27"]
[EventType "tourn"]
[EventCountry "USA"]
[SourceTitle "playchess.com"]
[Source "ChessBase"]
[SourceQuality "1"]
[TimeControl "5400+30"]

1. d4 {[%emt 0:00:00]} g6 {[%emt 0:00:29]} 2. c4 {[%emt 0:00:16]} Bg7 {[%emt 0:
00:58]} 3. Nc3 {[%emt 0:00:18]} c5 {[%emt 0:02:24]} 4. d5 {[%emt 0:00:10]}
Bxc3+ {[%emt 0:00:33]} 5. bxc3 {[%emt 0:00:01]} f5 {[%emt 0:00:07]} 6. e4 {
[%emt 0:01:35]} fxe4 {[%emt 0:00:16]} 7. f3 {[%emt 0:00:24]} e5 {[%emt 0:04:35]
} 8. Qc2 {[%emt 0:14:24]} Nf6 {[%emt 0:01:12]} 9. fxe4 {[%emt 0:01:03]} d6 {
[%emt 0:01:18]} 10. Bd3 {[%emt 0:01:46]} O-O {[%emt 0:00:36]} 11. Nf3 {[%emt 0:
03:00]} Kg7 {[%emt 0:10:18]} 12. O-O {[%emt 0:02:49]} h6 {[%emt 0:00:35]} 13.
Qd2 {[%emt 0:06:39]} Ng8 {[%emt 0:00:43]} 14. Qf2 {[%emt 0:02:39]} Nd7 {
[%emt 0:04:04]} 15. g4 {[%emt 0:12:27]} Ndf6 {[%emt 0:13:46]} 16. h3 {[%emt 0:
04:20]} h5 {[%emt 0:03:20]} 17. g5 {[%emt 0:00:28]} Ne8 {[%emt 0:09:19]} 18.
Qg3 {[%emt 0:00:17]} Qe7 {[%emt 0:03:41]} 19. Bd2 {[%emt 0:01:08]} Bd7 {
[%emt 0:02:55]} 20. Rf2 {[%emt 0:01:45]} Nc7 {[%emt 0:07:53]} 21. Raf1 {
[%emt 0:01:47]} Rf7 {[%emt 0:01:32]} 22. Nh4 {[%emt 0:01:59]} Rxf2 {[%emt 0:00:
38]} 23. Rxf2 {[%emt 0:00:12]} Rf8 {[%emt 0:12:33]} 24. Nf5+ {[%emt 0:01:47]}
gxf5 {[%emt 0:00:07]} 25. exf5 {[%emt 0:00:01]} Bxf5 {[%emt 0:01:42]} 26. Rxf5
{[%emt 0:05:15]} Rxf5 {[%emt 0:01:30]} 27. Bxf5 {[%emt 0:00:01]} Qf7 {[%emt 0:
00:41]} 28. Be4 {[%emt 0:01:49]} Ne8 {[%emt 0:13:31]} 29. Qe3 {[%emt 0:16:09]}
Ne7 {[%emt 0:00:47]} 30. Bd3 {[%emt 0:06:57]} Nf5 {[%emt 0:00:42]} 31. Qf3 {
[%emt 0:01:54]} Kg6 {[%emt 0:01:08]} 32. Bc2 {[%emt 0:01:48]} Neg7 {[%emt 0:00:
12]} 33. Qf1 {[%emt 0:00:50]} 1/2-1/2